[Event "Early-Titled-Tuesday-Blitz-May-28-2024"]
[Site "Chess.com"]
[Date "2024.05.28"]
[Round "2"]
[White "SaqoChess_Twitch"]
[Black "Giantgoogachess"]
[Result "0-1"]
[WhiteElo "2604"]
[BlackElo "2351"]
[TimeControl "180+1"]
[EndTime "8:16:51 PDT"]
[Termination "Giantgoogachess won by checkmate"]

1. d4 {[%clk 0:03:00.9]} 1... Nf6 {[%clk 0:03:00.3]} 2. c4 {[%clk 0:03:01.3]}
2... e6 {[%clk 0:03:00]} 3. Nc3 {[%clk 0:03:01.7]} 3... Bb4 {[%clk 0:02:59.9]}
4. a3 {[%clk 0:03:02]} 4... Bxc3+ {[%clk 0:02:59.6]} 5. bxc3 {[%clk 0:03:02.9]}
5... c5 {[%clk 0:02:55.9]} 6. e3 {[%clk 0:03:03]} 6... b6 {[%clk 0:02:53.7]} 7.
Bd3 {[%clk 0:03:03.4]} 7... Bb7 {[%clk 0:02:53]} 8. f3 {[%clk 0:03:03.7]} 8...
d6 {[%clk 0:02:48.6]} 9. Ne2 {[%clk 0:03:03.9]} 9... Nc6 {[%clk 0:02:40.7]} 10.
O-O {[%clk 0:03:04.1]} 10... Na5 {[%clk 0:02:41.2]} 11. e4 {[%clk 0:03:04.1]}
11... Qd7 {[%clk 0:02:37.3]} 12. Ng3 {[%clk 0:03:02.8]} 12... O-O-O {[%clk
0:02:21.9]} 13. Be3 {[%clk 0:03:02.7]} 13... Kb8 {[%clk 0:02:21]} 14. a4 {[%clk
0:03:02.3]} 14... Rc8 {[%clk 0:02:20]} 15. f4 {[%clk 0:02:57.2]} 15... cxd4
{[%clk 0:02:04.9]} 16. cxd4 {[%clk 0:02:57.1]} 16... Nxc4 {[%clk 0:02:01]} 17.
Bf2 {[%clk 0:02:53.6]} 17... d5 {[%clk 0:01:56.3]} 18. a5 {[%clk 0:02:52.9]}
18... dxe4 {[%clk 0:01:50.1]} 19. Bxc4 {[%clk 0:02:51.7]} 19... Rxc4 {[%clk
0:01:51]} 20. axb6 {[%clk 0:02:52.1]} 20... axb6 {[%clk 0:01:51.9]} 21. d5
{[%clk 0:02:51.3]} 21... Qxd5 {[%clk 0:01:33.7]} 22. Qb1 {[%clk 0:02:51.1]}
22... e3 {[%clk 0:01:31.9]} 23. Ne4 {[%clk 0:02:40.8]} 23... exf2+ {[%clk
0:01:30.9]} 24. Rxf2 {[%clk 0:02:40.2]} 24... Qxe4 {[%clk 0:01:00.4]} 25. Qxb6
{[%clk 0:02:38.6]} 25... Qc6 {[%clk 0:01:01]} 26. Qa7+ {[%clk 0:02:31.1]} 26...
Kc7 {[%clk 0:01:00.4]} 27. Qa5+ {[%clk 0:02:29.5]} 27... Kd7 {[%clk 0:01:00.3]}
28. Rd1+ {[%clk 0:02:26.9]} 28... Nd5 {[%clk 0:00:59.8]} 29. Rb2 {[%clk
0:02:23.2]} 29... Ra8 {[%clk 0:00:57.4]} 30. Qd2 {[%clk 0:02:20.1]} 30... Raa4
{[%clk 0:00:51.2]} 31. f5 {[%clk 0:02:19.8]} 31... Rd4 {[%clk 0:00:50.4]} 32.
Qe1 {[%clk 0:02:19.2]} 32... Rxd1 {[%clk 0:00:50.1]} 33. Qxd1 {[%clk 0:02:20.1]}
33... Rc4 {[%clk 0:00:44.5]} 34. fxe6+ {[%clk 0:02:19.9]} 34... fxe6 {[%clk
0:00:45.1]} 35. Rb1 {[%clk 0:02:16.3]} 35... Ke7 {[%clk 0:00:37.9]} 36. Qe1
{[%clk 0:02:14.1]} 36... Rc2 {[%clk 0:00:35.7]} 37. Qe4 {[%clk 0:02:07.4]} 37...
Rc1+ {[%clk 0:00:30]} 38. Rxc1 {[%clk 0:02:07.8]} 38... Qxc1+ {[%clk 0:00:30.8]}
39. Kf2 {[%clk 0:02:08.6]} 39... Qd2+ {[%clk 0:00:30.6]} 40. Kg3 {[%clk
0:02:08.5]} 40... Qe3+ {[%clk 0:00:30.5]} 41. Qxe3 {[%clk 0:02:07.7]} 41... Nxe3
{[%clk 0:00:31.4]} 42. h3 {[%clk 0:02:06.7]} 42... Nxg2 {[%clk 0:00:30.6]} 43.
Kg4 {[%clk 0:02:07.6]} 43... Ne3+ {[%clk 0:00:30.9]} 44. Kh5 {[%clk 0:02:07.5]}
44... Kf6 {[%clk 0:00:30.2]} 45. h4 {[%clk 0:02:07.8]} 45... g6+ {[%clk
0:00:30.5]} 46. Kh6 {[%clk 0:02:08.1]} 46... Nf5+ {[%clk 0:00:31.2]} 47. Kxh7
{[%clk 0:02:08.3]} 47... Nxh4 {[%clk 0:00:31.9]} 48. Kh6 {[%clk 0:02:08.9]}
48... e5 {[%clk 0:00:30.2]} 49. Kh7 {[%clk 0:02:09.1]} 49... e4 {[%clk
0:00:31.1]} 50. Kg8 {[%clk 0:02:10]} 50... e3 {[%clk 0:00:32]} 51. Kh7 {[%clk
0:02:10.8]} 51... e2 {[%clk 0:00:32.5]} 52. Kh6 {[%clk 0:02:11.7]} 52... Nf5+
{[%clk 0:00:30.8]} 53. Kh7 {[%clk 0:02:12.6]} 53... e1=Q {[%clk 0:00:31]} 54.
Kg8 {[%clk 0:02:12.9]} 54... Qe8+ {[%clk 0:00:30.7]} 55. Kh7 {[%clk 0:02:13.8]}
55... Qf7+ {[%clk 0:00:30.5]} 56. Kh8 {[%clk 0:02:14.2]} 56... Qg7# {[%clk
0:00:31.2]} 0-1

[Event "Early-Titled-Tuesday-Blitz-May-28-2024"]
[Site "Chess.com"]
[Date "2024.05.28"]
[Round "2"]
[White "N18player"]
[Black "klercaku"]
[Result "1-0"]
[WhiteElo "2591"]
[BlackElo "2286"]
[TimeControl "180+1"]
[EndTime "8:16:54 PDT"]
[Termination "N18player won by checkmate"]

1. Nf3 {[%clk 0:03:00.9]} 1... d5 {[%clk 0:02:59.6]} 2. c4 {[%clk 0:03:01.8]}
2... dxc4 {[%clk 0:02:59.3]} 3. e3 {[%clk 0:03:02.7]} 3... e6 {[%clk 0:02:59.4]}
4. Bxc4 {[%clk 0:03:02.1]} 4... Nf6 {[%clk 0:02:58.4]} 5. O-O {[%clk 0:03:02.4]}
5... Nbd7 {[%clk 0:02:58.5]} 6. a3 {[%clk 0:03:01.7]} 6... Be7 {[%clk
0:02:58.4]} 7. b4 {[%clk 0:03:01.5]} 7... O-O {[%clk 0:02:57.3]} 8. Bb2 {[%clk
0:03:01.5]} 8... c6 {[%clk 0:02:51]} 9. Nc3 {[%clk 0:03:01.1]} 9... Qc7 {[%clk
0:02:50.9]} 10. Rc1 {[%clk 0:03:01]} 10... Nb6 {[%clk 0:02:44.1]} 11. Bb3 {[%clk
0:03:00.5]} 11... a5 {[%clk 0:02:37.2]} 12. b5 {[%clk 0:02:56.8]} 12... c5
{[%clk 0:02:28.7]} 13. Qe2 {[%clk 0:02:54.5]} 13... e5 {[%clk 0:02:13.3]} 14.
Na4 {[%clk 0:02:41.5]} 14... Nbd7 {[%clk 0:01:46.3]} 15. b6 {[%clk 0:02:34.9]}
15... Nxb6 {[%clk 0:01:35.6]} 16. Bxe5 {[%clk 0:02:33.7]} 16... Qc6 {[%clk
0:01:31.2]} 17. Nd4 {[%clk 0:02:10.7]} 17... Qe8 {[%clk 0:01:00.1]} 18. Nxb6
{[%clk 0:02:07]} 18... cxd4 {[%clk 0:00:59]} 19. Nxa8 {[%clk 0:02:06.5]} 19...
Bg4 {[%clk 0:00:56.7]} 20. f3 {[%clk 0:02:05.1]} 20... Qxa8 {[%clk 0:00:32.7]}
21. fxg4 {[%clk 0:02:04.9]} 21... dxe3 {[%clk 0:00:28.4]} 22. dxe3 {[%clk
0:02:02.5]} 22... Bxa3 {[%clk 0:00:27.1]} 23. Bxf6 {[%clk 0:01:58.3]} 23... Bxc1
{[%clk 0:00:24.7]} 24. Ba1 {[%clk 0:01:34.1]} 24... Ba3 {[%clk 0:00:20.5]} 25.
Qa2 {[%clk 0:01:32.6]} 25... Bc5 {[%clk 0:00:13.4]} 26. Bxf7+ {[%clk 0:01:33.5]}
26... Kh8 {[%clk 0:00:13.2]} 27. Bxg7+ {[%clk 0:01:31.4]} 27... Kxg7 {[%clk
0:00:13]} 28. Qb2+ {[%clk 0:01:32.3]} 28... Kh6 {[%clk 0:00:13]} 29. Qf6# {[%clk
0:01:31.9]} 1-0

[Event "Early-Titled-Tuesday-Blitz-May-28-2024"]
[Site "Chess.com"]
[Date "2024.05.28"]
[Round "2"]
[White "bubeliang"]
[Black "Narek_Ghimoyan"]
[Result "1/2-1/2"]
[WhiteElo "2788"]
[BlackElo "2426"]
[TimeControl "180+1"]
[EndTime "8:16:56 PDT"]
[Termination "Game drawn by repetition"]

1. e4 {[%clk 0:03:00.9]} 1... e5 {[%clk 0:02:59.3]} 2. Nf3 {[%clk 0:02:58.2]}
2... Nc6 {[%clk 0:02:59.5]} 3. Bc4 {[%clk 0:02:56.9]} 3... Nf6 {[%clk
0:02:58.3]} 4. d3 {[%clk 0:02:55.3]} 4... Bc5 {[%clk 0:02:56.6]} 5. c3 {[%clk
0:02:55.7]} 5... d6 {[%clk 0:02:53.8]} 6. O-O {[%clk 0:02:56.2]} 6... O-O {[%clk
0:02:48.5]} 7. Re1 {[%clk 0:02:54.7]} 7... h6 {[%clk 0:02:46.8]} 8. h3 {[%clk
0:02:51.1]} 8... a6 {[%clk 0:02:45.9]} 9. a4 {[%clk 0:02:46.3]} 9... Ba7 {[%clk
0:02:45.2]} 10. Nbd2 {[%clk 0:02:45.2]} 10... Qe7 {[%clk 0:02:43.4]} 11. Nf1
{[%clk 0:02:44.9]} 11... Be6 {[%clk 0:02:40.7]} 12. Bb3 {[%clk 0:02:43.4]} 12...
Rad8 {[%clk 0:02:37.5]} 13. Bc2 {[%clk 0:02:42.9]} 13... d5 {[%clk 0:02:27.7]}
14. Qe2 {[%clk 0:02:41.8]} 14... Rfe8 {[%clk 0:02:12.8]} 15. Ng3 {[%clk
0:02:37.1]} 15... Qd7 {[%clk 0:01:53.9]} 16. Nh4 {[%clk 0:02:33.5]} 16... Bxh3
{[%clk 0:01:47.6]} 17. gxh3 {[%clk 0:02:01.4]} 17... Qxh3 {[%clk 0:01:46.9]} 18.
Nhf5 {[%clk 0:02:02.1]} 18... Ng4 {[%clk 0:01:41.6]} 19. Be3 {[%clk 0:01:43.3]}
19... Qh2+ {[%clk 0:01:35.9]} 20. Kf1 {[%clk 0:01:41.3]} 20... Qh3+ {[%clk
0:01:30.7]} 21. Kg1 {[%clk 0:01:38.1]} 21... Qh2+ {[%clk 0:00:24.3]} 22. Kf1
{[%clk 0:01:19.6]} 22... Qh3+ {[%clk 0:00:14.5]} 23. Kg1 {[%clk 0:01:16.6]}
1/2-1/2

[Event "Early-Titled-Tuesday-Blitz-May-28-2024"]
[Site "Chess.com"]
[Date "2024.05.28"]
[Round "2"]
[White "tylityli"]
[Black "rollercoaster29"]
[Result "1-0"]
[WhiteElo "2374"]
[BlackElo "2542"]
[TimeControl "180+1"]
[EndTime "8:16:57 PDT"]
[Termination "tylityli won by resignation"]

1. d4 {[%clk 0:02:51.9]} 1... Nf6 {[%clk 0:02:58.2]} 2. c4 {[%clk 0:02:52.2]}
2... g6 {[%clk 0:02:57.6]} 3. Nc3 {[%clk 0:02:52.8]} 3... Bg7 {[%clk 0:02:56.9]}
4. e4 {[%clk 0:02:53.5]} 4... d6 {[%clk 0:02:57.4]} 5. Nge2 {[%clk 0:02:54.4]}
5... O-O {[%clk 0:02:54.7]} 6. Ng3 {[%clk 0:02:55.3]} 6... Nbd7 {[%clk
0:02:52.2]} 7. Be2 {[%clk 0:02:55.2]} 7... e5 {[%clk 0:02:52.1]} 8. d5 {[%clk
0:02:55.8]} 8... a5 {[%clk 0:02:51.4]} 9. O-O {[%clk 0:02:55.7]} 9... Nc5 {[%clk
0:02:51.3]} 10. Be3 {[%clk 0:02:53.1]} 10... Nfd7 {[%clk 0:02:44.5]} 11. Qd2
{[%clk 0:02:52.5]} 11... a4 {[%clk 0:02:23.1]} 12. Rab1 {[%clk 0:02:45.4]} 12...
Qe7 {[%clk 0:02:05.8]} 13. b4 {[%clk 0:02:43.7]} 13... axb3 {[%clk 0:02:03.7]}
14. axb3 {[%clk 0:02:44]} 14... f5 {[%clk 0:02:02.7]} 15. exf5 {[%clk
0:02:40.6]} 15... gxf5 {[%clk 0:02:02.4]} 16. f4 {[%clk 0:02:40.9]} 16... exf4
{[%clk 0:01:28.7]} 17. Bxf4 {[%clk 0:02:36.7]} 17... Ne5 {[%clk 0:01:23.8]} 18.
b4 {[%clk 0:02:32]} 18... Ncd7 {[%clk 0:01:23]} 19. Bg5 {[%clk 0:02:21.6]} 19...
Qe8 {[%clk 0:00:41.3]} 20. Nxf5 {[%clk 0:02:19.2]} 20... Nb6 {[%clk 0:00:37.3]}
21. Nxg7 {[%clk 0:02:16.9]} 21... Rxf1+ {[%clk 0:00:24.6]} 22. Rxf1 {[%clk
0:02:14.2]} 22... Qg6 {[%clk 0:00:21.3]} 23. Ne6 {[%clk 0:02:03.6]} 23... Bxe6
{[%clk 0:00:19.6]} 24. dxe6 {[%clk 0:02:03.5]} 24... Nbxc4 {[%clk 0:00:19.9]}
25. Qf4 {[%clk 0:01:53.4]} 25... Nb6 {[%clk 0:00:14.2]} 26. e7 {[%clk
0:01:49.3]} 26... Nf7 {[%clk 0:00:10.9]} 27. Bh6 {[%clk 0:01:38.4]} 27... Qxh6
{[%clk 0:00:08.8]} 28. Qxf7+ {[%clk 0:01:37.4]} 1-0

[Event "Early-Titled-Tuesday-Blitz-May-28-2024"]
[Site "Chess.com"]
[Date "2024.05.28"]
[Round "2"]
[White "HighLawView"]
[Black "frenchpin"]
[Result "0-1"]
[WhiteElo "2063"]
[BlackElo "2457"]
[TimeControl "180+1"]
[EndTime "8:16:58 PDT"]
[Termination "frenchpin won by resignation"]

1. e4 {[%clk 0:03:00.9]} 1... e5 {[%clk 0:02:58.4]} 2. Nf3 {[%clk 0:02:57.8]}
2... Nf6 {[%clk 0:02:58.1]} 3. Nxe5 {[%clk 0:02:54.9]} 3... Nxe4 {[%clk
0:02:58]} 4. Qe2 {[%clk 0:02:54]} 4... Qe7 {[%clk 0:02:56.6]} 5. Qxe4 {[%clk
0:02:51.3]} 5... d6 {[%clk 0:02:56.5]} 6. d4 {[%clk 0:02:51.2]} 6... dxe5 {[%clk
0:02:55.9]} 7. dxe5 {[%clk 0:02:52.1]} 7... Nc6 {[%clk 0:02:54.4]} 8. Bb5 {[%clk
0:02:43.5]} 8... Bd7 {[%clk 0:02:45.8]} 9. Bf4 {[%clk 0:02:35.6]} 9... O-O-O
{[%clk 0:02:35]} 10. Nc3 {[%clk 0:02:30]} 10... g5 {[%clk 0:01:56.4]} 11. Bg3
{[%clk 0:02:25.1]} 11... Bg7 {[%clk 0:01:55.2]} 12. O-O-O {[%clk 0:01:56.8]}
12... Rhe8 {[%clk 0:01:34.4]} 13. Nd5 {[%clk 0:01:52.4]} 13... Qc5 {[%clk
0:01:32.3]} 14. Qa4 {[%clk 0:01:28.2]} 14... a6 {[%clk 0:01:27.1]} 15. Bxa6
{[%clk 0:01:21.5]} 15... Nxe5 {[%clk 0:01:14.8]} 16. Bxb7+ {[%clk 0:01:06.9]}
16... Kxb7 {[%clk 0:01:12.6]} 17. Qb3+ {[%clk 0:01:04.3]} 17... Qb5 {[%clk
0:01:10.5]} 18. Qa3 {[%clk 0:00:26.8]} 18... Nc4 {[%clk 0:01:07.1]} 19. Qc3
{[%clk 0:00:25.8]} 19... Bxc3 {[%clk 0:01:04.5]} 0-1

[Event "Early-Titled-Tuesday-Blitz-May-28-2024"]
[Site "Chess.com"]
[Date "2024.05.28"]
[Round "2"]
[White "JM05C"]
[Black "GothamChess"]
[Result "0-1"]
[WhiteElo "2556"]
[BlackElo "2791"]
[TimeControl "180+1"]
[EndTime "8:16:59 PDT"]
[Termination "GothamChess won by resignation"]

1. e4 {[%clk 0:03:00.9]} 1... d5 {[%clk 0:02:58.8]} 2. exd5 {[%clk 0:03:00.1]}
2... Qxd5 {[%clk 0:02:59.7]} 3. Nc3 {[%clk 0:02:59.4]} 3... Qa5 {[%clk
0:02:58.9]} 4. d4 {[%clk 0:02:59.5]} 4... Nf6 {[%clk 0:02:57.6]} 5. Nf3 {[%clk
0:02:59.8]} 5... Bf5 {[%clk 0:02:57.7]} 6. Ne5 {[%clk 0:02:57.6]} 6... c6 {[%clk
0:02:56.5]} 7. Bc4 {[%clk 0:02:57.8]} 7... e6 {[%clk 0:02:56.5]} 8. g4 {[%clk
0:02:58]} 8... Bg6 {[%clk 0:02:55.5]} 9. h4 {[%clk 0:02:58.6]} 9... Nbd7 {[%clk
0:02:55.7]} 10. Nxd7 {[%clk 0:02:58.6]} 10... Nxd7 {[%clk 0:02:51.7]} 11. h5
{[%clk 0:02:59.1]} 11... Be4 {[%clk 0:02:51.7]} 12. Rh3 {[%clk 0:02:59.8]} 12...
Bd5 {[%clk 0:02:42.1]} 13. Bxd5 {[%clk 0:02:50]} 13... cxd5 {[%clk 0:02:39]} 14.
Bd2 {[%clk 0:02:50.6]} 14... Qb6 {[%clk 0:02:28.5]} 15. Rd3 {[%clk 0:02:50]}
15... Rc8 {[%clk 0:02:21.5]} 16. Qe2 {[%clk 0:02:37.8]} 16... Be7 {[%clk
0:02:13.9]} 17. O-O-O {[%clk 0:02:36.5]} 17... Qa6 {[%clk 0:01:31.6]} 18. Re1
{[%clk 0:02:27.1]} 18... O-O {[%clk 0:01:21]} 19. g5 {[%clk 0:02:09]} 19... Rxc3
{[%clk 0:01:10.8]} 20. Rxc3 {[%clk 0:02:09.9]} 20... Qxa2 {[%clk 0:01:10.6]} 21.
Bf4 {[%clk 0:00:46.8]} 21... Bb4 {[%clk 0:01:03.7]} 22. g6 {[%clk 0:00:43.9]}
22... Qa1+ {[%clk 0:01:00.5]} 23. Kd2 {[%clk 0:00:43.8]} 23... Qxb2 {[%clk
0:01:00.7]} 24. gxh7+ {[%clk 0:00:34.8]} 24... Kh8 {[%clk 0:01:00.4]} 0-1

[Event "Early-Titled-Tuesday-Blitz-May-28-2024"]
[Site "Chess.com"]
[Date "2024.05.28"]
[Round "2"]
[White "AradNazari"]
[Black "RantomOpening"]
[Result "0-1"]
[WhiteElo "2793"]
[BlackElo "2581"]
[TimeControl "180+1"]
[EndTime "8:17:04 PDT"]
[Termination "RantomOpening won by checkmate"]

1. e4 {[%clk 0:03:00.9]} 1... c5 {[%clk 0:02:59.6]} 2. Nf3 {[%clk 0:03:01]} 2...
e6 {[%clk 0:02:59.1]} 3. d4 {[%clk 0:03:00.7]} 3... cxd4 {[%clk 0:03:00]} 4.
Nxd4 {[%clk 0:03:01.5]} 4... Nf6 {[%clk 0:03:00.2]} 5. Nc3 {[%clk 0:03:01.7]}
5... Nc6 {[%clk 0:03:00.6]} 6. Nxc6 {[%clk 0:03:01.3]} 6... bxc6 {[%clk
0:03:01.5]} 7. e5 {[%clk 0:03:02]} 7... Nd5 {[%clk 0:03:02]} 8. Ne4 {[%clk
0:03:02.5]} 8... Qc7 {[%clk 0:03:02.4]} 9. f4 {[%clk 0:03:02.6]} 9... Qb6 {[%clk
0:03:02.9]} 10. c4 {[%clk 0:03:02.9]} 10... Ne3 {[%clk 0:03:03.2]} 11. Qd3
{[%clk 0:03:03.5]} 11... Bb4+ {[%clk 0:03:03.2]} 12. Ke2 {[%clk 0:03:02.6]}
12... Nxc4 {[%clk 0:03:03.3]} 13. Kf3 {[%clk 0:02:39.9]} 13... Ba6 {[%clk
0:03:02.4]} 14. Qc2 {[%clk 0:02:31.6]} 14... Qd4 {[%clk 0:02:24.7]} 15. a3
{[%clk 0:02:13]} 15... Be7 {[%clk 0:02:02]} 16. Be2 {[%clk 0:02:11.3]} 16... g5
{[%clk 0:01:21.9]} 17. Rd1 {[%clk 0:01:55.2]} 17... g4+ {[%clk 0:01:21.4]} 18.
Kxg4 {[%clk 0:01:36.9]} 18... Ne3+ {[%clk 0:01:12.7]} 19. Bxe3 {[%clk
0:01:15.7]} 19... Qxe3 {[%clk 0:01:13.6]} 20. Rd3 {[%clk 0:00:05.8]} 20... h5#
{[%clk 0:01:13]} 0-1

[Event "Early-Titled-Tuesday-Blitz-May-28-2024"]
[Site "Chess.com"]
[Date "2024.05.28"]
[Round "2"]
[White "CarlosjPineror"]
[Black "Rdeux42"]
[Result "1-0"]
[WhiteElo "2724"]
[BlackElo "2409"]
[TimeControl "180+1"]
[EndTime "8:17:08 PDT"]
[Termination "CarlosjPineror won by resignation"]

1. e4 {[%clk 0:03:00.9]} 1... c5 {[%clk 0:02:59.8]} 2. Nf3 {[%clk 0:02:59.8]}
2... d6 {[%clk 0:03:00.4]} 3. d4 {[%clk 0:03:00.3]} 3... cxd4 {[%clk 0:03:01]}
4. Nxd4 {[%clk 0:03:01.1]} 4... Nf6 {[%clk 0:03:01.4]} 5. Nc3 {[%clk 0:03:01.7]}
5... a6 {[%clk 0:03:02]} 6. Bg5 {[%clk 0:03:02.1]} 6... Nbd7 {[%clk 0:03:01.7]}
7. f4 {[%clk 0:03:02.6]} 7... Qc7 {[%clk 0:03:01.9]} 8. Qe2 {[%clk 0:03:03.1]}
8... h6 {[%clk 0:03:01.7]} 9. Bh4 {[%clk 0:03:02.5]} 9... g5 {[%clk 0:02:50.5]}
10. fxg5 {[%clk 0:03:02.4]} 10... hxg5 {[%clk 0:02:51.4]} 11. Bxg5 {[%clk
0:03:02.7]} 11... Qc5 {[%clk 0:02:52.1]} 12. Be3 {[%clk 0:03:02.2]} 12... Ne5
{[%clk 0:02:48.6]} 13. O-O-O {[%clk 0:03:02.1]} 13... Neg4 {[%clk 0:02:45.5]}
14. Bg1 {[%clk 0:02:57.7]} 14... Bh6+ {[%clk 0:02:45.3]} 15. Kb1 {[%clk
0:02:57.1]} 15... Qa5 {[%clk 0:02:43.8]} 16. g3 {[%clk 0:02:39.2]} 16... Bd7
{[%clk 0:02:37]} 17. Bg2 {[%clk 0:02:21.8]} 17... Rc8 {[%clk 0:02:36.8]} 18. Nb3
{[%clk 0:02:05.1]} 18... Qc7 {[%clk 0:02:30.3]} 19. h3 {[%clk 0:02:01.2]} 19...
Ne5 {[%clk 0:02:29]} 20. Nd5 {[%clk 0:01:31.9]} 20... Nxd5 {[%clk 0:02:26.6]}
21. exd5 {[%clk 0:01:32.8]} 21... Bf5 {[%clk 0:02:25.6]} 22. Be4 {[%clk
0:01:32.1]} 22... Bxe4 {[%clk 0:02:14.1]} 23. Qxe4 {[%clk 0:01:33]} 23... Bg7
{[%clk 0:02:07.7]} 24. Bd4 {[%clk 0:01:30.1]} 24... a5 {[%clk 0:01:55.8]} 25. c3
{[%clk 0:01:24.8]} 25... a4 {[%clk 0:01:55]} 26. Nd2 {[%clk 0:01:25.5]} 26... a3
{[%clk 0:01:54.1]} 27. b3 {[%clk 0:01:24.2]} 27... b5 {[%clk 0:01:52.6]} 28. Rc1
{[%clk 0:01:18.2]} 28... Bf6 {[%clk 0:01:50.8]} 29. h4 {[%clk 0:01:17.4]} 29...
Rg8 {[%clk 0:01:42.8]} 30. h5 {[%clk 0:00:51.2]} 30... Rxg3 {[%clk 0:01:40.7]}
31. h6 {[%clk 0:00:51.8]} 31... Rg4 {[%clk 0:01:15.3]} 32. Qe2 {[%clk
0:00:51.5]} 32... Qb7 {[%clk 0:01:12]} 33. h7 {[%clk 0:00:46.5]} 33... Bh8
{[%clk 0:01:09.7]} 34. Bxe5 {[%clk 0:00:41.2]} 34... dxe5 {[%clk 0:01:03.3]} 35.
Qxg4 {[%clk 0:00:40.3]} 1-0

[Event "Early-Titled-Tuesday-Blitz-May-28-2024"]
[Site "Chess.com"]
[Date "2024.05.28"]
[Round "2"]
[White "jamengrand"]
[Black "crazy_but_lazy"]
[Result "0-1"]
[WhiteElo "2324"]
[BlackElo "2675"]
[TimeControl "180+1"]
[EndTime "8:17:11 PDT"]
[Termination "crazy_but_lazy won by resignation"]

1. e4 {[%clk 0:03:00.9]} 1... c6 {[%clk 0:02:58.2]} 2. Nf3 {[%clk 0:03:00.4]}
2... d5 {[%clk 0:02:58.1]} 3. exd5 {[%clk 0:03:01.3]} 3... cxd5 {[%clk
0:02:58.6]} 4. Ne5 {[%clk 0:03:01.5]} 4... Nc6 {[%clk 0:02:56.6]} 5. d4 {[%clk
0:03:01.3]} 5... e6 {[%clk 0:02:51.4]} 6. c3 {[%clk 0:03:01]} 6... Bd6 {[%clk
0:02:50]} 7. f4 {[%clk 0:03:01.1]} 7... Nge7 {[%clk 0:02:48.6]} 8. Bd3 {[%clk
0:02:59.5]} 8... O-O {[%clk 0:02:40]} 9. O-O {[%clk 0:02:53.5]} 9... f6 {[%clk
0:02:32.3]} 10. Qh5 {[%clk 0:02:24.6]} 10... Nf5 {[%clk 0:02:23]} 11. Nxc6
{[%clk 0:02:20.1]} 11... bxc6 {[%clk 0:02:20.7]} 12. g4 {[%clk 0:02:15.1]} 12...
g6 {[%clk 0:02:21]} 13. Qh3 {[%clk 0:02:15.3]} 13... Ng7 {[%clk 0:02:16.8]} 14.
f5 {[%clk 0:02:07.7]} 14... exf5 {[%clk 0:02:10.6]} 15. gxf5 {[%clk 0:02:06.9]}
15... Bxf5 {[%clk 0:02:08.7]} 16. Bxf5 {[%clk 0:02:06.2]} 16... Nxf5 {[%clk
0:02:09.6]} 17. Rxf5 {[%clk 0:01:35.2]} 17... gxf5 {[%clk 0:02:09.8]} 18. Bh6
{[%clk 0:01:35.6]} 18... Rf7 {[%clk 0:02:10.2]} 19. Nd2 {[%clk 0:01:35.2]} 19...
Kh8 {[%clk 0:01:59.8]} 20. Kh1 {[%clk 0:01:33]} 20... Qe7 {[%clk 0:01:55.4]} 21.
Rg1 {[%clk 0:01:19]} 21... Rg8 {[%clk 0:01:34.6]} 22. Rxg8+ {[%clk 0:01:14.4]}
22... Kxg8 {[%clk 0:01:35.5]} 23. Qg2+ {[%clk 0:00:55.7]} 23... Kh8 {[%clk
0:01:34.6]} 24. Nf3 {[%clk 0:00:55.8]} 24... Qe4 {[%clk 0:01:25.7]} 25. b4
{[%clk 0:00:19.9]} 25... Bf4 {[%clk 0:01:14.3]} 26. Bxf4 {[%clk 0:00:16.4]}
26... Qxf4 {[%clk 0:01:15.2]} 27. Qe2 {[%clk 0:00:16.2]} 27... Qe4 {[%clk
0:01:13.5]} 0-1

[Event "Early-Titled-Tuesday-Blitz-May-28-2024"]
[Site "Chess.com"]
[Date "2024.05.28"]
[Round "2"]
[White "RobertoJBM"]
[Black "ahkashefi2800"]
[Result "1-0"]
[WhiteElo "2807"]
[BlackElo "2564"]
[TimeControl "180+1"]
[EndTime "8:17:16 PDT"]
[Termination "RobertoJBM won by resignation"]

1. d4 {[%clk 0:03:00.9]} 1... d5 {[%clk 0:02:59.2]} 2. Nf3 {[%clk 0:03:00.9]}
2... Nf6 {[%clk 0:02:59.3]} 3. e3 {[%clk 0:03:01]} 3... c6 {[%clk 0:02:59.9]} 4.
Be2 {[%clk 0:03:01]} 4... Bg4 {[%clk 0:03:00]} 5. O-O {[%clk 0:03:01.9]} 5... e6
{[%clk 0:03:00.5]} 6. b3 {[%clk 0:03:01.1]} 6... Bd6 {[%clk 0:03:00.4]} 7. Ba3
{[%clk 0:03:00.7]} 7... O-O {[%clk 0:03:00.3]} 8. Qc1 {[%clk 0:03:00.5]} 8...
Ne4 {[%clk 0:02:59.3]} 9. c4 {[%clk 0:02:59.9]} 9... Qe7 {[%clk 0:02:58]} 10.
Bxd6 {[%clk 0:02:59.4]} 10... Nxd6 {[%clk 0:02:57.8]} 11. Qa3 {[%clk 0:02:58.7]}
11... Nd7 {[%clk 0:02:55.3]} 12. Re1 {[%clk 0:02:58]} 12... Rfe8 {[%clk
0:02:54.2]} 13. Nbd2 {[%clk 0:02:54]} 13... a6 {[%clk 0:02:52.1]} 14. Rac1
{[%clk 0:02:52.7]} 14... Rad8 {[%clk 0:02:51.4]} 15. h3 {[%clk 0:02:50]} 15...
Bxf3 {[%clk 0:02:51.3]} 16. Nxf3 {[%clk 0:02:47.9]} 16... g6 {[%clk 0:02:50.9]}
17. Red1 {[%clk 0:02:47.7]} 17... Nf5 {[%clk 0:02:48.6]} 18. Qxe7 {[%clk
0:02:47]} 18... Nxe7 {[%clk 0:02:49.5]} 19. b4 {[%clk 0:02:39.5]} 19... dxc4
{[%clk 0:02:47.1]} 20. Bxc4 {[%clk 0:02:40.4]} 20... Nb6 {[%clk 0:02:47]} 21.
Bb3 {[%clk 0:02:39.5]} 21... Rc8 {[%clk 0:02:45.6]} 22. Ne5 {[%clk 0:02:39]}
22... Ned5 {[%clk 0:02:44.3]} 23. a3 {[%clk 0:02:38.6]} 23... Red8 {[%clk
0:02:43.3]} 24. g3 {[%clk 0:02:35.8]} 24... Kg7 {[%clk 0:02:42.9]} 25. h4 {[%clk
0:02:35.3]} 25... h5 {[%clk 0:02:42.5]} 26. Kf1 {[%clk 0:02:34.2]} 26... Nf6
{[%clk 0:02:41.8]} 27. Ke2 {[%clk 0:02:33.6]} 27... Nfd7 {[%clk 0:02:41.4]} 28.
Nd3 {[%clk 0:02:33.7]} 28... Nd5 {[%clk 0:02:40.6]} 29. e4 {[%clk 0:02:31.9]}
29... N5f6 {[%clk 0:02:35.4]} 30. f3 {[%clk 0:02:31.8]} 30... Ne8 {[%clk
0:02:32.4]} 31. Nc5 {[%clk 0:02:30.4]} 31... Nxc5 {[%clk 0:02:31.6]} 32. dxc5
{[%clk 0:02:29.3]} 32... Kf6 {[%clk 0:02:31.4]} 33. f4 {[%clk 0:02:27.3]} 33...
Ke7 {[%clk 0:02:30.6]} 34. Ke3 {[%clk 0:02:23.6]} 34... Nc7 {[%clk 0:02:30.5]}
35. a4 {[%clk 0:02:19.1]} 35... Ra8 {[%clk 0:02:29.3]} 36. Bc4 {[%clk
0:02:17.2]} 36... a5 {[%clk 0:02:17.9]} 37. Rxd8 {[%clk 0:02:16.7]} 37... Kxd8
{[%clk 0:02:16.6]} 38. b5 {[%clk 0:02:17.6]} 38... cxb5 {[%clk 0:02:15.9]} 39.
axb5 {[%clk 0:02:18.5]} 39... a4 {[%clk 0:02:16.3]} 40. b6 {[%clk 0:02:15.6]}
40... Na6 {[%clk 0:02:04]} 41. c6 {[%clk 0:02:06.5]} 41... Kc8 {[%clk 0:01:57]}
42. c7 {[%clk 0:02:06.1]} 42... Nc5 {[%clk 0:01:08.6]} 43. Bb5 {[%clk
0:02:05.5]} 43... a3 {[%clk 0:00:57]} 44. Rd1 {[%clk 0:02:01.8]} 1-0